Cogmind - Beta 11.1 *** ADVENTURER MODE // 2022.11.17 @ 19:50:11 Player: SleepySid Result: Destroyed by Y-45 Defender with Beam Rifle Performance ------------- Evolutions (2) 1000 Regions Visited (5) 1000 Robots Destroyed (22) 110 Value Destroyed (606) 606 Prototype IDs (23) 460 Alien Tech Used (0) 0 Bonus (321) 321 TOTAL SCORE: 3497 Bonus ------- Follower Combat Kills 21 Aligned with FarCom 300 Cogmind --------- Core Integrity 0/550 Matter 277/300 Energy 100/100 System Corruption 5% Temperature Cool (9) Movement Core (200) Ox3 Location -8/Materials Parts ------- > --- POWER (2) -------- (None) > --- PROPULSION (3) --- (None) > --- UTILITY (4) ------ Medium Storage Unit Signal Interpreter Hacking Suite > --- WEAPON (2) ------- (None) > --- INVENTORY (10) --- Light Deuterium Engine Nuclear Core High-capacity Battery (250) Visual Processing Unit Improved Sensor Array Experimental Sensor Array Terrain Scanner Peak State ------------ > --- POWER ------------ Light Nuclear Core > --- PROPULSION ------- Aluminum Leg Aluminum Leg Aluminum Leg > --- UTILITY ---------- Medium Storage Unit Signal Interpreter Modified TNC Targeting Computer > --- WEAPON ----------- Assault Rifle Rocket Launcher > --- INVENTORY -------- Reinforced Ion Engine Nuclear Core Aluminum Leg High-capacity Battery Experimental Sensor Array Terrain Scanner Core Shielding [Rating: 19] Favorites ----------- Power Light Nuclear Core Engine Ion Engine Power Core Light Nuclear Core Propulsion Aluminum Leg Leg Aluminum Leg Wheel Wheel Utility Medium Storage Unit Device Terrain Scanner Storage Medium Storage Unit Processor Modified TNC Hackware Hacking Suite Protection Core Shielding Weapon Assault Rifle Energy Cannon Beam Cannon Ballistic Gun Assault Rifle Launcher Rocket Launcher Build | -11 -10 -10 -10 -9 -8 ------- Run | Scr Mat Min Exi Min Mat Slots Evolved 4 | . . . . . 4 Power 1 | . . . . . 1 Propulsion 1 | . . . . . 1 Utility 2 | . . . . . 2 Weapon . | . . . . . . Parts Attached 43 | 10 15 1 1 4 12 Power 8 | 2 3 . 1 . 2 Engine 6 | 2 3 . . . 1 Core 2 | . . . 1 . 1 Reactor . | . . . . . . Propulsion 14 | 4 5 . . 1 4 Treads . | . . . . . . Leg 12 | 2 5 . . 1 4 Wheel 2 | 2 . . . . . Hover . | . . . . . . Flight . | . . . . . . Utility 10 | 2 3 . . 1 4 Device 2 | 1 1 . . . . Storage 2 | 1 1 . . . . Processor 3 | . . . . 1 2 Hackware 1 | . . . . . 1 Protection 2 | . 1 . . . 1 Artifact . | . . . . . . Weapon 11 | 2 4 1 . 2 2 Energy Gun . | . . . . . . Energy Cannon 1 | . 1 . . . . Ballistic Gun 7 | 2 3 . . 1 1 Ballistic Cannon . | . . . . . . Launcher 3 | . . 1 . 1 1 Special Weapon . | . . . . . . Impact Weapon . | . . . . . . Slashing Weapon . | . . . . . . Piercing Weapon . | . . . . . . Special Melee Weapon . | . . . . . . Unidentified Prototypes . | . . . . . . Parts Lost 10 | . . . . . 10 Power 1 | . . . . . 1 Propulsion 4 | . . . . . 4 Utility 3 | . . . . . 3 Weapon 2 | . . . . . 2 Highest Loss Streak 4 | . . . . . 4 To Critical Strikes . | . . . . . . Average Slot Usage (%) 87 | . 99 99 85 91 64 Engine 5 | . 13 14 . . 2 Core 7 | . . . 13 14 4 Leg 26 | . 28 28 28 28 17 Device 9 | . 14 14 14 . . Storage 11 | . 8 14 14 14 9 Processor 5 | . . . . 14 18 Protection 2 | . 5 . . . 4 Energy Cannon 2 | . 10 . . . . Ballistic Gun 9 | . 17 26 . 12 6 Launcher 6 | . . . 14 7 . Naked Turns . | . . . . . . Heaviest Build 23 | 11 21 20 20 21 23 Greatest Support 30 | 20 20 20 20 20 30 Greatest Overweight (x) 3 | . 1 . . 1 3 Average Overweight (x) . | . . . . . . Largest Inventory Capacity 10 | 5 10 10 10 10 10 Average Capacity 8 | 5 7 10 10 10 10 Most Carried 10 | 5 8 9 10 10 9 Average Carried 7 | 3 5 7 8 8 6 Final Capacity 10 | 5 10 10 10 10 10 Final Carried 10 | 4 7 9 8 10 7 Class Distribution -------------------- 97% | Mutant Dominant Class ---------------- Mutant | -10/Materials Mutant | -10/Mines Mutant | -10/Exiles Mutant | -9/Mines Mutant | -8/Materials Resources | -11 -10 -10 -10 -9 -8 ----------- Run | Scr Mat Min Exi Min Mat Matter Collected 919 | 412 187 . . 72 248 Remotely . | . . . . . . Salvage Created 776 | 93 342 . . 51 290 Parts 41 | 9 18 . . 4 10 Haulers Intercepted 1 | . 1 . . . . Recyclers Shooed . | . . . . . . Parts Field Recycled . | . . . . . . Retrieved Matter . | . . . . . . Parts Self-Destructed . | . . . . . . Prevented . | . . . . . . Kills | -11 -10 -10 -10 -9 -8 ------- Run | Scr Mat Min Exi Min Mat Combat Hostiles Destroyed 15 | 1 8 . . . 6 Guns 8 | 1 2 . . . 5 Cannons 6 | . 6 . . . . AOE 1 | . . . . . 1 Classes Destroyed 7 | 3 3 . . . 1 Worker 1 | 1 . . . . . Tunneler 3 | 1 . . . 2 . Hauler 1 | . 1 . . . . Watcher 2 | . 1 . . . 1 Swarmer 3 | . 3 . . . . Grunt 11 | 1 5 . . . 5 Brawler 1 | . . . . . 1 Best Kill Streak 3 | 1 3 . . 2 3 Combat Bots Only 3 | 1 3 . . . 3 Max Kills in Single Turn 2 | 1 2 . . 1 1 Gunslinging . | . . . . . . Exploded 1 | . . . . . 1 Melee . | . . . . . . Uniques/NPCs Destroyed . | . . . . . . Combat | -11 -10 -10 -10 -9 -8 -------- Run | Scr Mat Min Exi Min Mat Damage Taken 1887 | 18 370 . . . 1499 Core 633 | . 81 . . . 552 Absorbed by Shields . | . . . . . . Redirected to Shielding 50 | . 1 . . . 49 Core Remaining (%) 83 | 100 . . . 67 . Volleys Fired 94 | 5 29 . . 4 56 Largest 2 | 2 2 . . 1 1 Hottest 80 | 40 80 . . 20 33 Shots Fired 108 | 9 39 . . 4 56 Gun 78 | 9 10 . . 4 55 Cannon 29 | . 29 . . . . Launcher 1 | . . . . . 1 Special . | . . . . . . Kinetic 78 | 9 10 . . 4 55 Thermal 29 | . 29 . . . . Explosive 1 | . . . . . 1 Electromagnetic . | . . . . . . Robot Hit Streak 17 | 8 12 . . 8 17 Robot Miss Streak 4 | . 4 . . . 2 Penetration Max . | . . . . . . Secondary Targets . | . . . . . . Shots Hit Robots 82 | 8 22 . . 4 48 Core Hits 38 | 5 13 . . 2 18 Critical Kills . | . . . . . . Critical Parts Destroyed 2 | . . . . . 2 Critical Strikes 2 | . . . . . 2 Destroy 2 | . . . . . 2 Melee Attacks . | . . . . . . Impact . | . . . . . . Slashing . | . . . . . . Piercing . | . . . . . . Sneak Attacks . | . . . . . . Combat Hostiles . | . . . . . . Follow-up Attacks . | . . . . . . Damage Inflicted 1298 | 82 400 . . 46 770 Guns 806 | 82 84 . . 46 594 Cannons 316 | . 316 . . . . Explosions 173 | . . . . . 173 Melee . | . . . . . . Ramming 3 | . . . . . 3 Kinetic 806 | 82 84 . . 46 594 Thermal 316 | . 316 . . . . Explosive 173 | . . . . . 173 Electromagnetic . | . . . . . . Impact . | . . . . . . Slashing . | . . . . . . Piercing . | . . . . . . Highest Corruption 5 | . . . . . 5 Average Corruption 5 | . . . . . 5 Corruption Purged . | . . . . . . Corruption Blocked . | . . . . . . Effects 9 | . . . . . 9 Message Errors 2 | . . . . . 2 Matter Fused 3 | . . . . . 3 Data Loss (minor) 1 | . . . . . 1 Data Loss (major) 1 | . . . . . 1 Misfires 1 | . . . . . 1 Weapon Failures 1 | . . . . . 1 Overload Shots . | . . . . . . Overflow Damage . | . . . . . . Projectiles . | . . . . . . Explosions . | . . . . . . Melee . | . . . . . . Knockbacks . | . . . . . . Impact . | . . . . . . Kinetic . | . . . . . . Secondary . | . . . . . . Self-Inflicted Damage 25 | . . . . . 25 Shots 1 | . . . . . 1 Rammed 1 | . . . . . 1 Targets Rammed 1 | . . . . . 1 Kicked . | . . . . . . Crushed . | . . . . . . Highest Temperature 189 | . 189 . . . 22 Average Temperature 54 | . 59 . . . 8 Received Heat Transfer 1062 | 12 114 . . . 936 Siege Activations . | . . . . . . Robots Corrupted . | . . . . . . Combat Hostiles . | . . . . . . Parts Fried . | . . . . . . Impact Corruptions . | . . . . . . Robots Melted . | . . . . . . Combat Hostiles . | . . . . . . Parts Melted 3 | . 3 . . . . Heat Transferred 666 | . 666 . . . . Parts Sabotaged . | . . . . . . Parts Stolen . | . . . . . . Parts Stripped . | . . . . . . Power Chain Reactions . | . . . . . . Missiles Intercepted . | . . . . . . Alert | -11 -10 -10 -10 -9 -8 ------- Run | Scr Mat Min Exi Min Mat Peak Influence 196 | 30 196 46 . 33 102 Initial 46 | . 16 46 . . 10 Average 54 | 22 108 46 . 9 48 Maximum Alert Level . | . . . . . . Low Security (%) 100 | 100 100 100 . 100 100 Level 1 . | . . . . . . Level 2 . | . . . . . . Level 3 . | . . . . . . Level 4 . | . . . . . . Level 5 . | . . . . . . High Security . | . . . . . . Max Security . | . . . . . . Squads Dispatched 4 | . 2 . . . 2 Investigation 2 | . 2 . . . . Extermination . | . . . . . . Reinforcement 2 | . . . . . 2 Assault . | . . . . . . Garrison . | . . . . . . Intercept . | . . . . . . Searches Triggered . | . . . . . . Construction Impeded 1 | . . . . . 1 Haulers Reinforced . | . . . . . . Active Scanning Responses . | . . . . . . Cargo Convoy Interrupts . | . . . . . . Stealth | -11 -10 -10 -10 -9 -8 --------- Run | Scr Mat Min Exi Min Mat Distress Signals 4 | . 2 . . . 2 Communications Jammed . | . . . . . . Distress Signals . | . . . . . . Times Spotted 30 | 1 17 . . 2 10 Peak Tracking Total 6 | 1 6 . . 2 5 Tactical Retreats 2 | . 2 . . . . Traps | -11 -10 -10 -10 -9 -8 ------- Run | Scr Mat Min Exi Min Mat Traps Triggered 1 | . 1 . . . . Indirectly . | . . . . . . Trap Hack Attempts . | . . . . . . Triggered . | . . . . . . Disarmed . | . . . . . . Reprogrammed . | . . . . . . Reused . | . . . . . . Traps Extracted . | . . . . . . Installed . | . . . . . . Triggered . | . . . . . . Machines | -11 -10 -10 -10 -9 -8 ---------- Run | Scr Mat Min Exi Min Mat Machines Disabled 1 | . 1 . . . . Max in Single Turn 1 | . 1 . . . . Machines Sabotaged . | . . . . . . Garrisons Compromised . | . . . . . . Overloaded Fab Kills . | . . . . . . Hacking | -11 -10 -10 -10 -9 -8 --------- Run | Scr Mat Min Exi Min Mat Machines Accessed 10 | . 4 . 5 . 1 Terminals 4 | . 3 . . . 1 Fabricators . | . . . . . . Repair Stations . | . . . . . . Recycling Units 1 | . 1 . . . . Scanalyzers . | . . . . . . Garrison Access . | . . . . . . Total Hacks 68 | . 15 . 50 . 3 Successful 65 | . 12 . 50 . 3 Failed 3 | . 3 . . . . Catastrophic . | . . . . . . Database Lockouts . | . . . . . . Manual 4 | . 2 . 2 . . Terminals 15 | . 12 . . . 3 Fabricators . | . . . . . . Repair Stations . | . . . . . . Recycling Units 3 | . 3 . . . . Scanalyzers . | . . . . . . Garrison Access . | . . . . . . Terminal Hacks 62 | . 9 . 50 . 3 Record 52 | . 3 . 49 . . Emergency Access Points 1 | . 1 . . . . Alert Level 2 | . 1 . . . 1 Dispatch Records 1 | . 1 . . . . Maintenance Status 1 | . 1 . . . . Security Status 1 | . . . . . 1 Recall Investigation 1 | . . . . . 1 Hauler Manifests 1 | . 1 . . . . Zone Layout 1 | . 1 . . . . EX-Prototype ID Bank 1 | . . . 1 . . Fabricator Hacks . | . . . . . . Repair Station Hacks . | . . . . . . Recycling Unit Hacks 3 | . 3 . . . . Process 1 | . 1 . . . . Report Inventory 1 | . 1 . . . . Retrieve Components 1 | . 1 . . . . Scanalyzer . | . . . . . . Garrison Access Hacks . | . . . . . . Unauthorized Hacks . | . . . . . . Terminals . | . . . . . . Fabricators . | . . . . . . Repair Stations . | . . . . . . Recycling Units . | . . . . . . Scanalyzers . | . . . . . . Garrison Access . | . . . . . . Data Cores Recovered . | . . . . . . Used . | . . . . . . Hacking Detections 4 | . 3 . . . 1 Full Trace Events 3 | . 2 . . . 1 Feedback Events . | . . . . . . Feedback Blocked . | . . . . . . Robot Schematics Acquired . | . . . . . . Robots Built . | . . . . . . Authchips . | . . . . . . Time . | . . . . . . Total Robot Build Rating . | . . . . . . Part Schematics Acquired . | . . . . . . Parts Built . | . . . . . . Authchips . | . . . . . . Time . | . . . . . . Total Part Build Rating . | . . . . . . Parts Repaired . | . . . . . . Time . | . . . . . . Parts Recycled . | . . . . . . Recycled Matter . | . . . . . . Retrieved Matter . | . . . . . . Retrieved Components 2 | . 2 . . . . Parts Scanalyzed . | . . . . . . Part Schematics Acquired . | . . . . . . Parts Damaged . | . . . . . . Bothacking | -11 -10 -10 -10 -9 -8 ------------ Run | Scr Mat Min Exi Min Mat Used RIF Installer . | . . . . . . Robots Hacked . | . . . . . . Non-combat . | . . . . . . Combat . | . . . . . . Robot Hacks Applied . | . . . . . . Relay Couplers Released . | . . . . . . Fabnet Peak Effective % . | . . . . . . Robots Rewired . | . . . . . . Allies Hacked . | . . . . . . Hacks Repelled . | . . . . . . Allies | -11 -10 -10 -10 -9 -8 -------- Run | Scr Mat Min Exi Min Mat Total Allies 3 | . . . . 3 . Largest Group 3 | . . . . 3 1 Highest-Rated Group 40 | . . . . 40 16 Highest-Rated Ally 16 | . . . . 16 16 Total Orders . | . . . . . . Ally Attacks 13 | . . . . 10 3 Total Damage 124 | . . . . 95 29 Kills 3 | . . . . 3 . Allies Corrupted 1 | . . . . . 1 Allies Melted . | . . . . . . Intel | -11 -10 -10 -10 -9 -8 ------- Run | Scr Mat Min Exi Min Mat Robot Analysis Total . | . . . . . . Derelict Logs Recovered 5 | . . 2 . 3 . Drone Launches . | . . . . . . Drone Recoveries . | . . . . . . Exploration | -11 -10 -10 -10 -9 -8 ------------- Run | Scr Mat Min Exi Min Mat Turns Passed 3277 | 363 698 333 979 441 463 Spaces Moved 2262 | 309 385 262 808 284 214 Core 75 | 31 . . . . 44 Treads . | . . . . . . Legs 2113 | 204 385 262 808 284 170 Wheels 74 | 74 . . . . . Hover . | . . . . . . Flight . | . . . . . . Fastest Speed 50 | 50 120 120 120 120 120 Average Speed 126 | 103 137 120 120 143 148 Slowest Speed 260 | 120 190 120 120 190 260 Overloaded Moves . | . . . . . . Propulsion Burnouts . | . . . . . . Robots Hopped . | . . . . . . Cave-ins Triggered 1 | . . . . . 1 Exploration Rate (%) 50 | 10 61 62 93 60 17 Regions Visited 5 Branch Regions 3 Pre-discovered Areas 3 | . . 1 1 1 . Known Exits Taken . | . . . . . . Unknown Exits Taken 5 | 1 1 1 1 1 . Scrap Searched 2 | . . . . 2 . Spaces Dug . | . . . . . . Terrain Destroyed 10 | . . . . . 10 Melee . | . . . . . . Projectile . | . . . . . . AOE 10 | . . . . . 10 Terrain Rammed . | . . . . . . Walls Destroyed . | . . . . . . Machines Disabled . | . . . . . . Actions | -11 -10 -10 -10 -9 -8 --------- Run | Scr Mat Min Exi Min Mat Total 2575 | 345 517 280 818 312 303 Wait 109 | 3 60 16 5 16 9 Move 2256 | 308 384 261 807 283 213 Hop . | . . . . . . Pick Up 43 | 15 15 1 2 4 6 Fast Attach . | . . . . . . Attach 23 | 7 6 . . 1 9 Detach 5 | . 2 1 . . 2 Swap 20 | 3 9 1 1 3 3 Drop 23 | 4 12 . 3 1 3 Fire 94 | 5 29 . . 4 56 Melee . | . . . . . . Ram 1 | . . . . . 1 Kick . | . . . . . . Crush . | . . . . . . Escape Stasis 1 | . . . . . 1 Rewire . | . . . . . . Trap . | . . . . . . Miscellaneous . | . . . . . . Route ------- -11/Scrapyard -10/Materials -10/Mines -10/Exiles -9/Mines -8/Materials (discovered 1 exit: Fac) History --------- Turn | Location | Event 2 | -11/Scrapyard | Met Revision 17 86 | -11/Scrapyard | Discovered new exit (range 8) 364 | -11/Scrapyard | Entered Materials 365 | -10/Materials | Build established: Mutant 649 | -10/Materials | Discovered new exit (range 7) 1062 | -10/Materials | Entered Mines 1097 | -10/Mines | Learned 2 Materials zone layouts 1245 | -10/Mines | Learned location of Storage (-8) 1370 | -10/Mines | Received a Rocket Launcher from a helpful Derelict 1389 | -10/Mines | Deemed a non-threat by the Exiles lab entrance 1389 | -10/Mines | Discovered new exit (range 5) 1395 | -10/Mines | Entered Exiles 1432 | -10/Exiles | Met 8R-AWN 1455 | -10/Exiles | Met EX-HEX 1511 | -10/Exiles | Met EX-DEC 1561 | -10/Exiles | Visited The Gauntlet 1760 | -10/Exiles | Learned location of Zion (-7) 1878 | -10/Exiles | Discovered new exit (range 14) 1953 | -10/Exiles | Met EX-BIN 2081 | -10/Exiles | Aligned with FarCom system 2082 | -10/Exiles | Given EX-Vault access code 2145 | -10/Exiles | Opened EX-Vault 2187 | -10/Exiles | Warned to stay clear of 0b10 Research branches 2246 | -10/Exiles | Found Modified TNC 2374 | -10/Exiles | Left Exiles lab with Modified TNC 2374 | -10/Exiles | Entered Mines 2580 | -9/Mines | Learned Materials emergency access door positions 2709 | -9/Mines | Found a damaged Exp. Sensor Array with a note attached 2712 | -9/Mines | Found Prototype Device 2738 | -9/Mines | Learned Materials interactive machine intel 2738 | -9/Mines | Assisted by bots powering up and referring to "LRC-V3" 2804 | -9/Mines | Discovered new exit (range 6) 2815 | -9/Mines | Entered Materials 2815 | -8/Materials | Accompanied by 1 ally 2815 | -8/Materials | Evolved 4 slots: Power x1, Propulsion x1, Utility x2 2816 | -8/Materials | Identified exit to Factory 2818 | -8/Materials | Loaded intel: 19 interactive machine locations 2959 | -8/Materials | Crushed by falling debris 2990 | -8/Materials | Lost 3 parts (1n1u1w) 3217 | -8/Materials | Lost 4 parts (1p1n1u1w) 3237 | -8/Materials | Core integrity fell below 50% 3263 | -8/Materials | Core integrity fell below 20% 3278 | -8/Materials | Destroyed by Y-45 Defender with Beam Rifle Last Messages --------------- Aluminum Leg destroyed. System corrupted: Matter fused (-10). Acquired Hacking Suite. Connecting with Terminal... Current location identified: Materials >>Alert(Check) Current Alert Level: Low Security >>Enumerate(Guards) Retrieving latest reported positions... Security request, restricting to local area... Found 2 active security squads. Downloaded coordinate data. >>Recall(Investigation) Establishing remote squad link... No tasked investigation squads found. NKTINQM:CHUYZTDFP7AFD6M ULVHP7 Core Shielding destroyed. Slammed into G-47 Trooper. U-05 Engineer lays Concrete. Critical hit (Burn: +37). Map ----- +----------------------------------------------------+ | ??????????????????????"""?????????? | | ??????????????????????????????????? | | ??????????????????????????????????? | | ??????????????????????????????????? | | ??????????????????????????????????? | | ??????????????????????????????????? | | ??????????????????????????????????? | | ??????????????????????????????????? | | ???????????????????????????# ?????? | | ??????????????????????????? ?????? | | ??????????????????????????? ?????? | | ??????????????????????????# ?????? | | ??????????????????????????# ?????? | | ??????????????????????????# ?????? | | ?????????????? ?????????# ?????? | | ????????????? #??+?????# #????? | | ?????????????# #????????# #????? | | ????##?####### #????????# #????? | | ????# # #????????# #????? | | ????# " # #????????# #????? | | ????# "G" # #??+?????# #????? | | ????# " " # #????????# ###### | | ????# # #????????# | | ????# """ # #????????# | | ????# """ # #######??# ###### | | ????# """ @ # # ???# #????? | | ????# # # ????## ##???? | | ?#########;### # #######g ##### | | ?#! ! # Y g | | ?# # T ^ | | ?#!!! + #######+####### ### | | ?#!! # #???# #??##+###??? | | ?#!! # #???# #??? ??????? | | ?# ! ####???# "" #??? ??????? | | ?########??????#! """#??? ??????? | | ???????????????# S"#?? ??????? | | ???????????????# #?? ??????? | | ???????????????########?? ??????? | | ?????????????????????????!!???????? | | ????????????????????????!! ???????? | | ????????????????????????!! ???????? | | ??????????????????????????????????? | | ??????????????????????????????????? | | ??????????????????????????????????? | | ??????????????????????????????????? | | ??????????????????????????????????? | | | | | | | | | +----------------------------------------------------+ Best States ------------- Heat Dissipation 31 Energy Generation 14 Energy Capacity 265 Matter Stores 400 Matter Capacity 400 Sight Range 16 Terrain Scan Range 14 Terrain Scan Density 10 Resistance: KI 20 Resistance: TH 20 Resistance: EX 20 Resistance: EM 20 Resistance: I 20 Resistance: S 20 Resistance: P 20 Core Shielding 20 Evasion (%) 55 Targeting Accuracy 5 Offensive Hacking 20 Item Schematics ----------------- None Robot Schematics ------------------ None Fabricated ------------ Nothing Alien Tech Used ----------------- None Achievements -------------- Librarian One Hack Too Far Shopping List Tourist Challenges ------------ None Game ------ Seed CorruptionImprinterModule Manual? 0 Play Time 01:58:39 Cumulative 7.1 hours Start 2022.11.14 @ 01:27:51 End 2022.11.17 @ 19:50:11 Sessions 4 Manual Loads 0 Difficulty Adventurer Special Mode None Game No. 2 Rogue 0 Adventurer 2 Explorer 0 Win Type - Total 0 Types 0/0/0/0/0/0/0/0/0 Lore% 10 Gallery% 6 Achievement% 6 Wizard Run 0 Options --------- ASCII 0 Keyboard 0 Movement Mouse Keybinds 0 Fullscreen 1 Font 18/Smallcaps Map View 76x50 Tactical HUD 0 Map Filters NONE Filters NONE Steam 1 RUN: 680230af-3ef2-4964-b2ff-bbcb49059c91